[Event "Titled Tuesday Blitz March 08 Late 2022"]
[White "Cupid, Kevin"]
[Black "Mortazavi, Ali"]
[WhiteFideId "7700512"]
[BlackFideId "401323"]
[WhiteElo "2096"]
[BlackElo "2339"]
[Result "1/2-1/2"]
[Round "02"]
[TimeControl "180+1"]
[Date "2022.03.09"]
[WhiteClock "0:00:10"]
[BlackClock "0:00:13"]

1. Nf3 {[%clk 0:02:51]}  Nf6 {[%clk 0:02:59]} 2. d4 {[%clk 0:02:52]}  g6 {[%clk 0:02:59]} 3. c4 {[%clk 0:02:52]}  Bg7 {[%clk 0:02:59]} 4. Nc3 {[%clk 0:02:52]}  O-O {[%clk 0:03:00]} 5. Bg5 {[%clk 0:02:51]}  d6 {[%clk 0:03:01]} 6. e3 {[%clk 0:02:50]}  c5 {[%clk 0:03:01]} 7. Be2 {[%clk 0:02:50]}  cxd4 {[%clk 0:03:01]} 8. Nxd4 {[%clk 0:02:50]}  Nc6 {[%clk 0:03:00]} 9. O-O {[%clk 0:02:49]}  Bd7 {[%clk 0:03:01]} 10. Rc1 {[%clk 0:02:49]}  Rc8 {[%clk 0:03:01]} 11. h3 {[%clk 0:02:48]}  Qa5 {[%clk 0:02:57]} 12. Bh4 {[%clk 0:02:47]}  a6 {[%clk 0:02:50]} 13. a3 {[%clk 0:02:44]}  Rfe8 {[%clk 0:02:36]} 14. Nc2 {[%clk 0:02:14]}  Ne5 {[%clk 0:02:29]} 15. b4 {[%clk 0:01:50]}  Qd8 {[%clk 0:02:26]} 16. Bxf6 {[%clk 0:01:46]}  Bxf6 {[%clk 0:02:25]} 17. Nd5 {[%clk 0:01:43]}  Bg7 {[%clk 0:02:23]} 18. Nd4 {[%clk 0:01:35]}  e6 {[%clk 0:02:22]} 19. Nf4 {[%clk 0:01:34]}  b6 {[%clk 0:02:19]} 20. Qb3 {[%clk 0:01:32]}  Qc7 {[%clk 0:02:17]} 21. Rc2 {[%clk 0:01:28]}  Qb8 {[%clk 0:02:02]} 22. Rfc1 {[%clk 0:01:26]}  Nc6 {[%clk 0:01:57]} 23. Nf3 {[%clk 0:01:18]}  Rcd8 {[%clk 0:01:45]} 24. Rd1 {[%clk 0:01:16]}  Bc8 {[%clk 0:01:45]} 25. Rcd2 {[%clk 0:01:15]}  Bb7 {[%clk 0:01:45]} 26. Qa4 {[%clk 0:01:08]}  Qa8 {[%clk 0:01:42]} 27. Rxd6 {[%clk 0:00:57]}  Rxd6 {[%clk 0:01:42]} 28. Rxd6 {[%clk 0:00:58]}  Bf8 {[%clk 0:01:25]} 29. Rd7 {[%clk 0:00:52]}  Qc8 {[%clk 0:01:20]} 30. Qd1 {[%clk 0:00:51]}  Bg7 {[%clk 0:01:15]} 31. Qd6 {[%clk 0:00:44]}  Rd8 {[%clk 0:01:10]} 32. Rxd8+ {[%clk 0:00:42]}  Nxd8 {[%clk 0:01:10]} 33. Qxb6 {[%clk 0:00:38]}  h6 {[%clk 0:01:04]} 34. Nd3 {[%clk 0:00:18]}  Qd7 {[%clk 0:00:54]} 35. Nfe5 {[%clk 0:00:17]}  Bxe5 {[%clk 0:00:54]} 36. Nxe5 {[%clk 0:00:18]}  Qd2 {[%clk 0:00:54]} 37. Bf3 {[%clk 0:00:18]}  Bxf3 {[%clk 0:00:47]} 38. gxf3 {[%clk 0:00:18]}  Kg7 {[%clk 0:00:45]} 39. Kg2 {[%clk 0:00:18]}  g5 {[%clk 0:00:27]} 40. Qd4 {[%clk 0:00:18]}  Qxd4 {[%clk 0:00:24]} 41. exd4 {[%clk 0:00:18]}  Kf6 {[%clk 0:00:24]} 42. Kg3 {[%clk 0:00:18]}  Ke7 {[%clk 0:00:24]} 43. f4 {[%clk 0:00:18]}  f6 {[%clk 0:00:25]} 44. Nd3 {[%clk 0:00:17]}  Nc6 {[%clk 0:00:24]} 45. d5 {[%clk 0:00:17]}  exd5 {[%clk 0:00:25]} 46. cxd5 {[%clk 0:00:17]}  Nd4 {[%clk 0:00:26]} 47. fxg5 {[%clk 0:00:17]}  hxg5 {[%clk 0:00:25]} 48. f4 {[%clk 0:00:16]}  Ne2+ {[%clk 0:00:21]} 49. Kf3 {[%clk 0:00:16]}  Ng1+ {[%clk 0:00:20]} 50. Kg2 {[%clk 0:00:16]}  Ne2 {[%clk 0:00:20]} 51. Kf2 {[%clk 0:00:16]}  Nc3 {[%clk 0:00:18]} 52. fxg5 {[%clk 0:00:16]}  fxg5 {[%clk 0:00:19]} 53. Kf3 {[%clk 0:00:16]}  Nxd5 {[%clk 0:00:19]} 54. Ke4 {[%clk 0:00:17]}  Nb6 {[%clk 0:00:19]} 55. Ke5 {[%clk 0:00:16]}  Nc4+ {[%clk 0:00:19]} 56. Kf5 {[%clk 0:00:16]}  Nxa3 {[%clk 0:00:18]} 57. Nc5 {[%clk 0:00:17]}  Nb5 {[%clk 0:00:14]} 58. Nxa6 {[%clk 0:00:17]}  Nd4+ {[%clk 0:00:15]} 59. Kxg5 {[%clk 0:00:17]}  Kd7 {[%clk 0:00:13]} 60. Kg6 {[%clk 0:00:17]}  Kc6 {[%clk 0:00:13]} 61. h4 {[%clk 0:00:17]}  Ne6 {[%clk 0:00:12]} 62. h5 {[%clk 0:00:17]}  Nf4+ {[%clk 0:00:12]} 63. Kg5 {[%clk 0:00:17]}  Nxh5 {[%clk 0:00:13]} 64. Kxh5 {[%clk 0:00:18]}  Kb5 {[%clk 0:00:14]} 65. Kg5 {[%clk 0:00:10]}  Kxa6 {[%clk 0:00:12]} 66. Kf4 {[%clk 0:00:10]}  Kb5 {[%clk 0:00:13]} 67. Ke4 {[%clk 0:00:10]}  Kc4 {[%clk 0:00:14]} 68. Ke5 {[%clk 0:00:10]}  Kxb4 {[%clk 0:00:13]} 1/2-1/2


[Site "https://www.chess.com"]

[Event "Titled Tuesday Blitz March 08 Late 2022"]
[White "Di Nicolantonio, Lucas"]
[Black "Arnold, Ken"]
[WhiteFideId "680460"]
[BlackFideId "2056836"]
[WhiteElo "2381"]
[BlackElo "2293"]
[Result "1-0"]
[Round "02"]
[TimeControl "180+1"]
[Date "2022.03.09"]
[WhiteClock "0:01:45"]
[BlackClock "0:00:39"]

1. c4 {[%clk 0:03:00]}  e6 {[%clk 0:02:57]} 2. Nf3 {[%clk 0:02:59]}  d5 {[%clk 0:02:46]} 3. b3 {[%clk 0:02:55]}  dxc4 {[%clk 0:02:45]} 4. bxc4 {[%clk 0:02:55]}  c5 {[%clk 0:02:45]} 5. Bb2 {[%clk 0:02:54]}  b6 {[%clk 0:02:44]} 6. g3 {[%clk 0:02:54]}  Bb7 {[%clk 0:02:43]} 7. Bg2 {[%clk 0:02:55]}  Nd7 {[%clk 0:02:41]} 8. O-O {[%clk 0:02:55]}  Ngf6 {[%clk 0:02:41]} 9. Nc3 {[%clk 0:02:54]}  Be7 {[%clk 0:02:39]} 10. a4 {[%clk 0:02:54]}  O-O {[%clk 0:02:38]} 11. d3 {[%clk 0:02:54]}  a6 {[%clk 0:02:31]} 12. a5 {[%clk 0:02:51]}  Qc7 {[%clk 0:02:28]} 13. axb6 {[%clk 0:02:47]}  Nxb6 {[%clk 0:02:28]} 14. e4 {[%clk 0:02:32]}  Rfd8 {[%clk 0:02:23]} 15. Qe2 {[%clk 0:02:26]}  Bc6 {[%clk 0:02:21]} 16. h4 {[%clk 0:02:18]}  Rdb8 {[%clk 0:02:19]} 17. e5 {[%clk 0:02:16]}  Nfd7 {[%clk 0:02:17]} 18. Rfe1 {[%clk 0:02:11]}  h6 {[%clk 0:02:16]} 19. Ne4 {[%clk 0:02:09]}  Bxe4 {[%clk 0:02:07]} 20. Qxe4 {[%clk 0:02:09]}  a5 {[%clk 0:01:49]} 21. Bc1 {[%clk 0:02:01]}  a4 {[%clk 0:01:44]} 22. Qg4 {[%clk 0:01:57]}  Bf8 {[%clk 0:01:22]} 23. Bxh6 {[%clk 0:01:51]}  a3 {[%clk 0:01:19]} 24. h5 {[%clk 0:01:47]}  f5 {[%clk 0:00:54]} 25. exf6 {[%clk 0:01:46]}  Nxf6 {[%clk 0:00:53]} 26. Qxe6+ {[%clk 0:01:46]}  Kh8 {[%clk 0:00:39]} 27. Bf4 {[%clk 0:01:45]} 1-0


[Site "https://www.chess.com"]

[Event "Titled Tuesday Blitz March 08 Late 2022"]
[White "Dias, Joao Batista"]
[Black "Estrada Nieto, Julian"]
[WhiteFideId "2108240"]
[BlackFideId "5101018"]
[WhiteElo "1898"]
[BlackElo "2246"]
[Result "0-1"]
[Round "02"]
[TimeControl "180+1"]
[Date "2022.03.09"]
[WhiteClock "0:02:44"]
[BlackClock "0:02:33"]

1. Nf3 {[%clk 0:02:52]}  d5 {[%clk 0:02:59]} 2. d4 {[%clk 0:02:52]}  Nf6 {[%clk 0:03:00]} 3. e3 {[%clk 0:02:51]}  c5 {[%clk 0:02:59]} 4. dxc5 {[%clk 0:02:51]}  e6 {[%clk 0:02:58]} 5. Bd3 {[%clk 0:02:51]}  Bxc5 {[%clk 0:02:58]} 6. O-O {[%clk 0:02:51]}  Nc6 {[%clk 0:02:59]} 7. Nbd2 {[%clk 0:02:50]}  e5 {[%clk 0:02:53]} 8. Nb3 {[%clk 0:02:49]}  Bb6 {[%clk 0:02:49]} 9. Bb5 {[%clk 0:02:48]}  Qe7 {[%clk 0:02:44]} 10. Bxc6+ {[%clk 0:02:46]}  bxc6 {[%clk 0:02:44]} 11. c3 {[%clk 0:02:46]}  Bg4 {[%clk 0:02:39]} 12. h3 {[%clk 0:02:45]}  Bh5 {[%clk 0:02:38]} 13. g4 {[%clk 0:02:45]}  Nxg4 {[%clk 0:02:33]} 14. hxg4 {[%clk 0:02:44]}  Bxg4 {[%clk 0:02:34]} 15. Kg2 {[%clk 0:02:44]}  e4 {[%clk 0:02:33]} 0-1


[Site "https://www.chess.com"]

[Event "Titled Tuesday Blitz March 08 Late 2022"]
[White "Dobrov, Vladimir"]
[Black "Arabidze, Meri"]
[WhiteFideId "4136594"]
[BlackFideId "13604040"]
[WhiteElo "2614"]
[BlackElo "2335"]
[Result "1-0"]
[Round "02"]
[TimeControl "180+1"]
[Date "2022.03.08"]
[WhiteClock "0:00:27"]
[BlackClock "0:00:02"]

1. d4 {[%clk 0:02:22]}  f5 {[%clk 0:02:59]} 2. e4 {[%clk 0:02:21]}  fxe4 {[%clk 0:02:58]} 3. Nc3 {[%clk 0:02:21]}  Nf6 {[%clk 0:02:59]} 4. Bg5 {[%clk 0:02:21]}  Nc6 {[%clk 0:02:59]} 5. d5 {[%clk 0:02:21]}  Ne5 {[%clk 0:02:59]} 6. Qe2 {[%clk 0:02:21]}  Nf7 {[%clk 0:02:59]} 7. Bxf6 {[%clk 0:02:20]}  exf6 {[%clk 0:03:00]} 8. Nxe4 {[%clk 0:02:20]}  Bb4+ {[%clk 0:02:59]} 9. c3 {[%clk 0:02:19]}  Be7 {[%clk 0:03:00]} 10. d6 {[%clk 0:02:20]}  cxd6 {[%clk 0:02:57]} 11. O-O-O {[%clk 0:02:19]}  O-O {[%clk 0:02:57]} 12. Ng3 {[%clk 0:02:11]}  Re8 {[%clk 0:02:55]} 13. Qc2 {[%clk 0:02:06]}  g6 {[%clk 0:01:49]} 14. h4 {[%clk 0:02:04]}  f5 {[%clk 0:01:43]} 15. Bc4 {[%clk 0:02:00]}  d5 {[%clk 0:01:12]} 16. Bxd5 {[%clk 0:01:59]}  Bf6 {[%clk 0:01:11]} 17. h5 {[%clk 0:01:54]}  d6 {[%clk 0:01:10]} 18. hxg6 {[%clk 0:01:54]}  hxg6 {[%clk 0:01:11]} 19. Nh3 {[%clk 0:01:50]}  Be6 {[%clk 0:01:06]} 20. Bxe6 {[%clk 0:01:45]}  Rxe6 {[%clk 0:01:06]} 21. Kb1 {[%clk 0:01:45]}  Be5 {[%clk 0:01:01]} 22. Ne2 {[%clk 0:01:41]}  Kg7 {[%clk 0:00:37]} 23. Nhf4 {[%clk 0:01:40]}  Rf6 {[%clk 0:00:35]} 24. Nd5 {[%clk 0:01:39]}  Re6 {[%clk 0:00:35]} 25. a3 {[%clk 0:01:19]}  Qd7 {[%clk 0:00:29]} 26. f4 {[%clk 0:01:13]}  Bf6 {[%clk 0:00:29]} 27. Nxf6 {[%clk 0:01:13]}  Rxf6 {[%clk 0:00:29]} 28. Nd4 {[%clk 0:01:13]}  Re8 {[%clk 0:00:28]} 29. Qf2 {[%clk 0:01:09]}  Rh8 {[%clk 0:00:22]} 30. Rxh8 {[%clk 0:01:06]}  Nxh8 {[%clk 0:00:21]} 31. Rh1 {[%clk 0:01:04]}  Qe7 {[%clk 0:00:18]} 32. Ka1 {[%clk 0:00:59]}  Nf7 {[%clk 0:00:18]} 33. Qh4 {[%clk 0:00:57]}  Qe4 {[%clk 0:00:17]} 34. Qg3 {[%clk 0:00:47]}  a5 {[%clk 0:00:15]} 35. Re1 {[%clk 0:00:46]}  Qd5 {[%clk 0:00:15]} 36. Re7 {[%clk 0:00:45]}  a4 {[%clk 0:00:13]} 37. Qe1 {[%clk 0:00:43]}  Qc4 {[%clk 0:00:12]} 38. Rxb7 {[%clk 0:00:41]}  Kg8 {[%clk 0:00:05]} 39. Qe8+ {[%clk 0:00:39]}  Kg7 {[%clk 0:00:04]} 40. Qe1 {[%clk 0:00:34]}  Qd3 {[%clk 0:00:03]} 41. Ne6+ {[%clk 0:00:31]}  Kg8 {[%clk 0:00:01]} 42. Rb8+ {[%clk 0:00:29]}  Kh7 {[%clk 0:00:01]} 43. Qh4+ {[%clk 0:00:29]}  Nh6 {[%clk 0:00:02]} 44. Rh8+ {[%clk 0:00:27]} 1-0


[Site "https://www.chess.com"]

[Event "Titled Tuesday Blitz March 08 Late 2022"]
[White "Fiorito, Fabian"]
[Black "Tristan, Leonardo"]
[WhiteFideId "100200"]
[BlackFideId "113816"]
[WhiteElo "2431"]
[BlackElo "2707"]
[Result "0-1"]
[Round "02"]
[TimeControl "180+1"]
[Date "2022.03.09"]
[WhiteClock "0:00:30"]
[BlackClock "0:00:29"]

1. d4 {[%clk 0:03:00]}  d5 {[%clk 0:02:58]} 2. Nc3 {[%clk 0:03:01]}  Nf6 {[%clk 0:02:57]} 3. Bf4 {[%clk 0:03:01]}  c5 {[%clk 0:02:56]} 4. e4 {[%clk 0:03:01]}  cxd4 {[%clk 0:02:34]} 5. Qxd4 {[%clk 0:03:01]}  Nc6 {[%clk 0:02:35]} 6. Bb5 {[%clk 0:03:02]}  Bd7 {[%clk 0:02:32]} 7. Bxc6 {[%clk 0:03:02]}  Bxc6 {[%clk 0:02:32]} 8. e5 {[%clk 0:03:03]}  Ne4 {[%clk 0:02:26]} 9. e6 {[%clk 0:03:03]}  Qb6 {[%clk 0:01:55]} 10. Qxb6 {[%clk 0:02:46]}  axb6 {[%clk 0:01:55]} 11. exf7+ {[%clk 0:02:45]}  Kxf7 {[%clk 0:01:56]} 12. Nxe4 {[%clk 0:02:43]}  dxe4 {[%clk 0:01:57]} 13. Ne2 {[%clk 0:02:39]}  h5 {[%clk 0:01:47]} 14. a3 {[%clk 0:02:34]}  h4 {[%clk 0:01:47]} 15. h3 {[%clk 0:02:31]}  Rh5 {[%clk 0:01:43]} 16. O-O-O {[%clk 0:02:31]}  g6 {[%clk 0:01:33]} 17. Be3 {[%clk 0:02:28]}  b5 {[%clk 0:01:30]} 18. Rd2 {[%clk 0:02:07]}  e6 {[%clk 0:01:29]} 19. Kb1 {[%clk 0:02:03]}  b4 {[%clk 0:01:28]} 20. axb4 {[%clk 0:02:01]}  Bxb4 {[%clk 0:01:28]} 21. c3 {[%clk 0:02:00]}  Be7 {[%clk 0:01:25]} 22. Nd4 {[%clk 0:01:44]}  Bd5 {[%clk 0:01:22]} 23. Rc1 {[%clk 0:01:32]}  Bc4 {[%clk 0:01:21]} 24. Rcd1 {[%clk 0:01:11]}  Bd3+ {[%clk 0:01:12]} 25. Rxd3 {[%clk 0:01:10]}  exd3 {[%clk 0:01:13]} 26. Rxd3 {[%clk 0:01:11]}  Rd8 {[%clk 0:01:05]} 27. Kc2 {[%clk 0:01:09]}  Rhd5 {[%clk 0:01:04]} 28. Nf3 {[%clk 0:01:04]}  Rxd3 {[%clk 0:00:59]} 29. Ne5+ {[%clk 0:01:04]}  Kf6 {[%clk 0:00:59]} 30. Nxd3 {[%clk 0:01:05]}  Kf5 {[%clk 0:01:00]} 31. Bd4 {[%clk 0:01:05]}  Bd6 {[%clk 0:00:43]} 32. b4 {[%clk 0:01:02]}  e5 {[%clk 0:00:43]} 33. Be3 {[%clk 0:01:01]}  e4 {[%clk 0:00:43]} 34. Nb2 {[%clk 0:01:01]}  b5 {[%clk 0:00:42]} 35. Kb3 {[%clk 0:01:00]}  Be5 {[%clk 0:00:41]} 36. Kc2 {[%clk 0:00:56]}  g5 {[%clk 0:00:38]} 37. Nd1 {[%clk 0:00:53]}  g4 {[%clk 0:00:38]} 38. hxg4+ {[%clk 0:00:53]}  Kxg4 {[%clk 0:00:39]} 39. Bc5 {[%clk 0:00:53]}  Bf4 {[%clk 0:00:32]} 40. Bd4 {[%clk 0:00:47]}  Kf5 {[%clk 0:00:30]} 41. Kb3 {[%clk 0:00:43]}  Rg8 {[%clk 0:00:29]} 42. g3 {[%clk 0:00:30]}  h3 {[%clk 0:00:29]} 0-1


[Site "https://www.chess.com"]

[Event "Titled Tuesday Blitz March 08 Late 2022"]
[White "Fishbein, Alexander"]
[Black "Martinez Alcantara, Jose Eduardo"]
[WhiteFideId "2000377"]
[BlackFideId "3805662"]
[WhiteElo "2442"]
[BlackElo "2690"]
[Result "0-1"]
[Round "02"]
[TimeControl "180+1"]
[Date "2022.03.08"]
[WhiteClock "0:00:01"]
[BlackClock "0:00:14"]

1. e4 {[%clk 0:02:43]}  c5 {[%clk 0:02:59]} 2. Nf3 {[%clk 0:02:42]}  d6 {[%clk 0:03:00]} 3. d4 {[%clk 0:02:39]}  cxd4 {[%clk 0:03:01]} 4. Nxd4 {[%clk 0:02:38]}  Nf6 {[%clk 0:03:01]} 5. Nc3 {[%clk 0:02:38]}  Nc6 {[%clk 0:03:02]} 6. Be2 {[%clk 0:02:37]}  e5 {[%clk 0:03:00]} 7. Nf3 {[%clk 0:02:37]}  Be7 {[%clk 0:03:00]} 8. Bg5 {[%clk 0:02:36]}  Be6 {[%clk 0:02:56]} 9. O-O {[%clk 0:02:35]}  O-O {[%clk 0:02:46]} 10. Qd2 {[%clk 0:02:35]}  Ne8 {[%clk 0:02:37]} 11. Be3 {[%clk 0:02:28]}  Nf6 {[%clk 0:02:36]} 12. Bg5 {[%clk 0:02:25]}  Qb6 {[%clk 0:02:19]} 13. b3 {[%clk 0:02:22]}  Rfd8 {[%clk 0:02:15]} 14. a3 {[%clk 0:02:13]}  d5 {[%clk 0:02:03]} 15. exd5 {[%clk 0:01:56]}  Nxd5 {[%clk 0:01:57]} 16. Nxd5 {[%clk 0:01:56]}  Rxd5 {[%clk 0:01:54]} 17. Qe3 {[%clk 0:01:48]}  Qxe3 {[%clk 0:01:35]} 18. Bxe3 {[%clk 0:01:39]}  Rd7 {[%clk 0:01:34]} 19. Bb5 {[%clk 0:01:33]}  f6 {[%clk 0:01:33]} 20. Rfd1 {[%clk 0:01:31]}  Rxd1+ {[%clk 0:01:31]} 21. Rxd1 {[%clk 0:01:30]}  Bxa3 {[%clk 0:01:24]} 22. Bxc6 {[%clk 0:01:19]}  bxc6 {[%clk 0:01:24]} 23. Ra1 {[%clk 0:01:19]}  Bb4 {[%clk 0:01:25]} 24. Rxa7 {[%clk 0:01:19]}  Rxa7 {[%clk 0:01:12]} 25. Bxa7 {[%clk 0:01:18]}  Bf5 {[%clk 0:01:13]} 26. c4 {[%clk 0:01:03]}  Bc2 {[%clk 0:01:12]} 27. Be3 {[%clk 0:00:58]}  Bxb3 {[%clk 0:01:11]} 28. c5 {[%clk 0:00:58]}  Bd5 {[%clk 0:01:10]} 29. Nd2 {[%clk 0:00:57]}  Kf7 {[%clk 0:01:03]} 30. g3 {[%clk 0:00:57]}  g5 {[%clk 0:01:01]} 31. Kf1 {[%clk 0:00:52]}  g4 {[%clk 0:01:01]} 32. Ke2 {[%clk 0:00:51]}  f5 {[%clk 0:00:59]} 33. Kd3 {[%clk 0:00:48]}  Ke6 {[%clk 0:00:59]} 34. Nc4 {[%clk 0:00:30]}  h5 {[%clk 0:00:44]} 35. Nd6 {[%clk 0:00:28]}  Ba5 {[%clk 0:00:33]} 36. Ne8 {[%clk 0:00:26]}  Bd8 {[%clk 0:00:29]} 37. Ng7+ {[%clk 0:00:24]}  Kf6 {[%clk 0:00:30]} 38. Ne8+ {[%clk 0:00:21]}  Kg6 {[%clk 0:00:30]} 39. Nd6 {[%clk 0:00:20]}  h4 {[%clk 0:00:30]} 40. Ke2 {[%clk 0:00:18]}  h3 {[%clk 0:00:31]} 41. Nb7 {[%clk 0:00:13]}  Be7 {[%clk 0:00:30]} 42. Nd6 {[%clk 0:00:13]}  Be6 {[%clk 0:00:28]} 43. f3 {[%clk 0:00:11]}  gxf3+ {[%clk 0:00:27]} 44. Kxf3 {[%clk 0:00:11]}  Bd5+ {[%clk 0:00:27]} 45. Kf2 {[%clk 0:00:11]}  Kf6 {[%clk 0:00:24]} 46. Nc8 {[%clk 0:00:10]}  Bf8 {[%clk 0:00:24]} 47. Nd6 {[%clk 0:00:09]}  Ke6 {[%clk 0:00:24]} 48. Ne8 {[%clk 0:00:08]}  Bc4 {[%clk 0:00:21]} 49. Nd6 {[%clk 0:00:05]}  Bd3 {[%clk 0:00:19]} 50. Ne8 {[%clk 0:00:04]}  Kd5 {[%clk 0:00:18]} 51. Nd6 {[%clk 0:00:04]}  Be7 {[%clk 0:00:15]} 52. Nf7 {[%clk 0:00:04]}  Ke6 {[%clk 0:00:06]} 53. Nd6 {[%clk 0:00:04]}  Bxd6 {[%clk 0:00:06]} 54. cxd6 {[%clk 0:00:04]}  Kxd6 {[%clk 0:00:07]} 55. Bb6 {[%clk 0:00:03]}  Kd5 {[%clk 0:00:07]} 56. Ke3 {[%clk 0:00:04]}  Bc2 {[%clk 0:00:08]} 57. Ba7 {[%clk 0:00:04]}  Bd1 {[%clk 0:00:08]} 58. Bb6 {[%clk 0:00:04]}  Bg4 {[%clk 0:00:08]} 59. Ba7 {[%clk 0:00:04]}  Kd6 {[%clk 0:00:08]} 60. Bb8+ {[%clk 0:00:04]}  Ke6 {[%clk 0:00:08]} 61. Ba7 {[%clk 0:00:04]}  Kd5 {[%clk 0:00:08]} 62. Bb6 {[%clk 0:00:05]}  c5 {[%clk 0:00:09]} 63. Ba7 {[%clk 0:00:05]}  c4 {[%clk 0:00:08]} 64. Bb6 {[%clk 0:00:05]}  Bh5 {[%clk 0:00:09]} 65. Ba5 {[%clk 0:00:05]}  Bg6 {[%clk 0:00:08]} 66. Bc3 {[%clk 0:00:06]}  Bf7 {[%clk 0:00:08]} 67. Bb2 {[%clk 0:00:06]}  Be8 {[%clk 0:00:08]} 68. Bc3 {[%clk 0:00:07]}  Bd7 {[%clk 0:00:09]} 69. Bb2 {[%clk 0:00:07]}  e4 {[%clk 0:00:10]} 70. Bc3 {[%clk 0:00:07]}  Kc5 {[%clk 0:00:11]} 71. Kf4 {[%clk 0:00:06]}  Kb5 {[%clk 0:00:11]} 72. Ke3 {[%clk 0:00:06]}  Ka4 {[%clk 0:00:11]} 73. Kd2 {[%clk 0:00:06]}  Kb3 {[%clk 0:00:12]} 74. Be5 {[%clk 0:00:06]}  Be6 {[%clk 0:00:12]} 75. Bf6 {[%clk 0:00:06]}  Bd5 {[%clk 0:00:11]} 76. Be5 {[%clk 0:00:06]}  Bc6 {[%clk 0:00:11]} 77. Bf6 {[%clk 0:00:07]}  Ka2 {[%clk 0:00:11]} 78. Be5 {[%clk 0:00:06]}  Kb1 {[%clk 0:00:11]} 79. Bf6 {[%clk 0:00:06]}  Bb5 {[%clk 0:00:11]} 80. Be5 {[%clk 0:00:07]}  Ka2 {[%clk 0:00:11]} 81. Bf6 {[%clk 0:00:06]}  Kb3 {[%clk 0:00:12]} 82. Be5 {[%clk 0:00:07]}  Kb4 {[%clk 0:00:13]} 83. Bc3+ {[%clk 0:00:06]}  Kc5 {[%clk 0:00:13]} 84. Ke3 {[%clk 0:00:07]}  Bd7 {[%clk 0:00:14]} 85. Bf6 {[%clk 0:00:06]}  Kb4 {[%clk 0:00:14]} 86. Kd2 {[%clk 0:00:06]}  Kb3 {[%clk 0:00:14]} 87. Be5 {[%clk 0:00:06]}  Be6 {[%clk 0:00:14]} 88. Bf6 {[%clk 0:00:06]}  f4 {[%clk 0:00:15]} 89. gxf4 {[%clk 0:00:06]}  Bf5 {[%clk 0:00:16]} 90. Be5 {[%clk 0:00:06]}  c3+ {[%clk 0:00:14]} 91. Bxc3 {[%clk 0:00:01]}  e3+ {[%clk 0:00:14]} 0-1


[Site "https://www.chess.com"]

[Event "Titled Tuesday Blitz March 08 Late 2022"]
[White "Gadimbayli, Abdulla"]
[Black "Molenda, Marcin"]
[WhiteFideId "13404938"]
[BlackFideId "1173065"]
[WhiteElo "2716"]
[BlackElo "2488"]
[Result "1-0"]
[Round "02"]
[TimeControl "180+1"]
[Date "2022.03.09"]
[WhiteClock "0:00:15"]
[BlackClock "0:00:07"]

1. e4 {[%clk 0:03:00]}  c5 {[%clk 0:02:58]} 2. Nf3 {[%clk 0:03:00]}  e6 {[%clk 0:02:58]} 3. d4 {[%clk 0:03:00]}  cxd4 {[%clk 0:02:58]} 4. Nxd4 {[%clk 0:03:01]}  Nc6 {[%clk 0:02:59]} 5. Nc3 {[%clk 0:03:01]}  Qc7 {[%clk 0:02:59]} 6. Be3 {[%clk 0:03:02]}  a6 {[%clk 0:03:00]} 7. Qd2 {[%clk 0:03:02]}  Nf6 {[%clk 0:03:00]} 8. f4 {[%clk 0:03:02]}  Bb4 {[%clk 0:02:52]} 9. Bd3 {[%clk 0:03:02]}  d5 {[%clk 0:02:52]} 10. e5 {[%clk 0:02:59]}  Ng4 {[%clk 0:02:44]} 11. Bg1 {[%clk 0:02:56]}  h5 {[%clk 0:02:39]} 12. h3 {[%clk 0:02:39]}  Nh6 {[%clk 0:02:31]} 13. g4 {[%clk 0:02:39]}  Na5 {[%clk 0:02:17]} 14. a3 {[%clk 0:02:28]}  Bxc3 {[%clk 0:02:00]} 15. Qxc3 {[%clk 0:02:19]}  Qxc3+ {[%clk 0:02:00]} 16. bxc3 {[%clk 0:02:20]}  Nc4 {[%clk 0:02:01]} 17. Bxc4 {[%clk 0:01:42]}  dxc4 {[%clk 0:01:58]} 18. a4 {[%clk 0:01:37]}  b6 {[%clk 0:01:54]} 19. O-O-O {[%clk 0:01:24]}  Bb7 {[%clk 0:01:53]} 20. Rh2 {[%clk 0:01:24]}  Ng8 {[%clk 0:01:45]} 21. f5 {[%clk 0:01:16]}  Bd5 {[%clk 0:01:37]} 22. g5 {[%clk 0:01:06]}  Ne7 {[%clk 0:01:33]} 23. f6 {[%clk 0:01:05]}  Ng6 {[%clk 0:01:31]} 24. fxg7 {[%clk 0:01:01]}  Rg8 {[%clk 0:01:31]} 25. Nf5 {[%clk 0:01:00]}  Rd8 {[%clk 0:01:12]} 26. Bxb6 {[%clk 0:00:56]}  Rd7 {[%clk 0:01:12]} 27. Ne3 {[%clk 0:00:42]}  Rxg7 {[%clk 0:01:08]} 28. Rhd2 {[%clk 0:00:42]}  Nf4 {[%clk 0:00:54]} 29. Nxc4 {[%clk 0:00:37]}  Rxg5 {[%clk 0:00:43]} 30. Be3 {[%clk 0:00:23]}  Nxh3 {[%clk 0:00:08]} 31. Bxg5 {[%clk 0:00:22]}  Nxg5 {[%clk 0:00:08]} 32. Nb6 {[%clk 0:00:19]}  Ne4 {[%clk 0:00:07]} 33. Nxd7 {[%clk 0:00:16]}  Kxd7 {[%clk 0:00:07]} 34. c4 {[%clk 0:00:15]} 1-0


[Site "https://www.chess.com"]

[Event "Titled Tuesday Blitz March 08 Late 2022"]
[White "Galego, Luis"]
[Black "Salinas Herrera, Pablo"]
[WhiteFideId "1900072"]
[BlackFideId "3407128"]
[WhiteElo "2516"]
[BlackElo "2541"]
[Result "0-1"]
[Round "02"]
[TimeControl "180+1"]
[Date "2022.03.09"]
[WhiteClock "0:00:19"]
[BlackClock "0:00:15"]

1. d4 {[%clk 0:03:00]}  d5 {[%clk 0:02:59]} 2. c4 {[%clk 0:03:00]}  e6 {[%clk 0:02:59]} 3. Nf3 {[%clk 0:02:59]}  a6 {[%clk 0:02:59]} 4. c5 {[%clk 0:02:58]}  g6 {[%clk 0:02:58]} 5. Nc3 {[%clk 0:02:58]}  Bg7 {[%clk 0:02:59]} 6. Bg5 {[%clk 0:02:58]}  Nf6 {[%clk 0:02:58]} 7. e3 {[%clk 0:02:55]}  h6 {[%clk 0:02:58]} 8. Bh4 {[%clk 0:02:53]}  Nc6 {[%clk 0:02:58]} 9. Rc1 {[%clk 0:02:52]}  O-O {[%clk 0:02:56]} 10. Be2 {[%clk 0:02:51]}  Qe8 {[%clk 0:02:51]} 11. O-O {[%clk 0:02:43]}  Ne4 {[%clk 0:02:43]} 12. Nxe4 {[%clk 0:02:35]}  dxe4 {[%clk 0:02:44]} 13. Nd2 {[%clk 0:02:35]}  f5 {[%clk 0:02:44]} 14. Bg3 {[%clk 0:02:31]}  e5 {[%clk 0:02:42]} 15. d5 {[%clk 0:02:27]}  Nd8 {[%clk 0:02:43]} 16. f4 {[%clk 0:02:18]}  exf3 {[%clk 0:02:41]} 17. Bxf3 {[%clk 0:02:14]}  e4 {[%clk 0:02:40]} 18. Be2 {[%clk 0:02:14]}  Bxb2 {[%clk 0:02:40]} 19. Bxc7 {[%clk 0:02:06]}  Bxc1 {[%clk 0:02:38]} 20. Qxc1 {[%clk 0:02:06]}  Nf7 {[%clk 0:02:38]} 21. Nc4 {[%clk 0:02:04]}  Bd7 {[%clk 0:02:32]} 22. Nb6 {[%clk 0:02:00]}  Bb5 {[%clk 0:02:21]} 23. Bxb5 {[%clk 0:01:57]}  Qxb5 {[%clk 0:02:21]} 24. Nxa8 {[%clk 0:01:52]}  Rxa8 {[%clk 0:02:22]} 25. d6 {[%clk 0:01:51]}  Rc8 {[%clk 0:02:03]} 26. Rd1 {[%clk 0:01:48]}  Qd7 {[%clk 0:01:59]} 27. Rd4 {[%clk 0:01:44]}  Ne5 {[%clk 0:01:31]} 28. Qc3 {[%clk 0:01:43]}  Qe6 {[%clk 0:01:19]} 29. Qd2 {[%clk 0:01:37]}  Nd7 {[%clk 0:01:15]} 30. Qc2 {[%clk 0:01:27]}  Kf7 {[%clk 0:01:13]} 31. h4 {[%clk 0:01:23]}  Rg8 {[%clk 0:00:56]} 32. c6 {[%clk 0:00:48]}  bxc6 {[%clk 0:00:56]} 33. Qxc6 {[%clk 0:00:47]}  g5 {[%clk 0:00:57]} 34. hxg5 {[%clk 0:00:46]}  Rxg5 {[%clk 0:00:58]} 35. Ra4 {[%clk 0:00:40]}  Ne5 {[%clk 0:00:49]} 36. Qb7 {[%clk 0:00:36]}  Kg6 {[%clk 0:00:37]} 37. Qb3 {[%clk 0:00:35]}  Qd7 {[%clk 0:00:19]} 38. Rxa6 {[%clk 0:00:29]}  Kh5 {[%clk 0:00:17]} 39. Ra8 {[%clk 0:00:22]}  Qg7 {[%clk 0:00:15]} 40. Qc2 {[%clk 0:00:20]}  Nf3+ {[%clk 0:00:15]} 41. Kf1 {[%clk 0:00:19]}  Qa1+ {[%clk 0:00:15]} 0-1


[Site "https://www.chess.com"]